fUSD/lending_fUSD_20250507
["ID","MTS","AMOUNT","RATE_DAILY","PERIOD"]
[360205549,1746621729805,157.46,0.00019306,2]
[360205550,1746621738353,178.72,0.00019403,2]
[360205551,1746621738900,-219.812822,0.00019501,2]
[360205552,1746621752642,219.812822,0.00019403,2]
[360205553,1746621753302,-297.76582936,0.00019501,2]
[360205554,1746621765008,297.765829,0.00019403,2]
[360205555,1746621768241,-171.82984164,0.00019501,2]
[360205556,1746621777560,171.829842,0.00019403,2]
[360205557,1746621819607,500.0,0.00029589,30]
[360205558,1746621819845,500.0,0.00029863,30]
[360205559,1746621861338,560.0,0.0003,90]
[360205560,1746621905232,4047.96,0.000189,2]
[360205561,1746621906979,4047.96,0.00019,2]
[360205562,1746621908696,4047.96,0.00019,2]
[360205563,1746621909482,170.09,0.00015056,2]
[360205564,1746621909710,170.09,0.0001882,2]
[360205565,1746621913173,4047.96,0.00019,2]
[360205566,1746621914823,1382.16269,0.00019403,2]
[360205567,1746621927178,269.18136954,0.000195,2]
[360205568,1746621928895,200.0,0.00018821,2]
[360205569,1746621933325,-398.901083,0.00019501,2]
[360205570,1746621935873,212.288866,0.00018601,2]
[360205571,1746621936022,212.288866,0.00018833,2]
[360205572,1746621936328,212.288866,0.00019066,2]
[360205573,1746621936647,212.288866,0.00019298,2]
[360205574,1746621939133,1500.0,0.00019178,2]
[360205575,1746621948263,-437.4093338,0.00019501,2]
[360205576,1746621969692,1000.0,0.0001882,2]
[360205577,1746621974757,163.18366497,0.0003,30]
[360205578,1746622023906,250.0,0.00018817,2]
[360205579,1746622027396,836.3104168,0.00019498,2]
[360205580,1746622037791,1333.0,0.00029041,120]
[360205581,1746622164281,307.73,0.00018833,2]
[360205585,1746622184121,50000.0,0.0003,30]
[360205586,1746622197318,52649.0,0.0003,30]
[360205587,1746622218332,-151.0,0.00019501,2]
[360205588,1746622218353,-5.52810851,0.00019501,2]
[360205589,1746622218930,-178.98,0.00019501,2]
[360205594,1746622232107,-15.49189149,0.00019501,2]
[360205595,1746622232116,-2016.49963585,0.00019501,2]
[360205596,1746622232125,-250.0,0.00019501,2]
[360205597,1746622232135,-212.288866,0.00019531,2]
[360205598,1746622232144,-300.0,0.00019587,2]
[360205599,1746622232153,-1200.0,0.00019587,2]
[360205600,1746622232162,-300.0,0.00019587,2]
[360205601,1746622232172,-151.0,0.00019588,2]
[360205602,1746622232181,-207.4,0.00019588,2]
[360205603,1746622232191,-151.0,0.00019588,2]
[360205604,1746622232200,-668.65185757,0.00019588,2]
[360205605,1746622232208,-151.0,0.00019588,2]
[360205606,1746622232218,-1232.0,0.000196,2]
[360205607,1746622232227,-2774.18434109,0.000196,2]
[360205608,1746622232270,-1598.98676213,0.000196,2]
[360205609,1746622232281,-267.59430731,0.000196,2]
[360205610,1746622232292,-52582.93503515,0.000196,2]
[360205638,1746622234278,3392.64,0.00018817,2]
[360205642,1746622238126,-361.26540913,0.000196,2]
[360205643,1746622238137,-351.6,0.000196,2]
[360205644,1746622238148,-1555.40956786,0.000196,2]
[360205653,1746622240204,-362.98211326,0.000196,2]
[360205654,1746622240215,-413.09191282,0.000196,2]
[360205655,1746622240230,-334.24466693,0.000196,2]
[360205657,1746622241289,-7910.63281796,0.000196,2]
[360205658,1746622241299,-150.0,0.00019728,2]
[360205659,1746622241308,-150.0,0.00019731,2]
[360205660,1746622241318,-150.0,0.00019733,2]
[360205661,1746622241327,-150.0,0.00019734,2]
[360205662,1746622241337,-150.0,0.00019735,2]
[360205663,1746622241346,-150.0,0.00019745,2]
[360205664,1746622241356,-150.0,0.00019745,2]
[360205665,1746622241366,-150.0,0.00019746,2]
[360205666,1746622241375,-10766.7958,0.00019747,2]
[360205667,1746622241386,-150.0,0.0001975,2]
[360205668,1746622241395,-150.0,0.0001975,2]
[360205669,1746622241404,-150.0,0.00019751,2]
[360205670,1746622241414,-457.78,0.00019754,2]
[360205671,1746622241425,-735.0673,0.00019754,2]
[360205672,1746622241435,-150.0,0.00019758,2]
[360205673,1746622241444,-150.0,0.00019758,2]
[360205674,1746622241452,-150.0,0.00019759,2]
[360205675,1746622241461,-150.0,0.00019759,2]
[360205676,1746622241470,-150.0,0.00019762,2]
[360205677,1746622241480,-150.0,0.00019762,2]
[360205678,1746622241489,-150.0,0.00019764,2]
[360205679,1746622241498,-2387.1521,0.00019773,2]
[360205680,1746622241508,-150.0,0.00019778,2]
[360205681,1746622241517,-150.0,0.00019784,2]
[360205682,1746622241526,-150.0,0.00019785,2]
[360205683,1746622241536,-927.0,0.00019788,2]
[360205684,1746622241545,-798.0,0.00019788,2]
[360205685,1746622241554,-582.0,0.00019788,2]
[360205686,1746622241563,-1453.0,0.00019788,2]
[360205687,1746622241573,-551.0,0.00019788,2]
[360205688,1746622241582,-916.0,0.00019788,2]
[360205689,1746622241591,-516.512,0.00019788,2]
[360205690,1746622241601,-153.0,0.00019788,2]
[360205691,1746622241610,-879.0,0.00019788,2]
[360205692,1746622241620,-150.0,0.00019792,2]
[360205693,1746622241629,-150.0,0.00019793,2]
[360205694,1746622241638,-150.0,0.00019795,2]
[360205695,1746622241647,-4165.27670334,0.00019796,2]
[360205696,1746622241656,-154.97758502,0.00019799,2]
[360205697,1746622241665,-168.70673,0.000198,23]
[360205698,1746622241674,-1232.0,0.000198,2]
[360205699,1746622241686,-150.0,0.00019803,2]
[360205700,1746622241696,-150.0,0.00019804,2]
[360205701,1746622241706,-150.0,0.00019804,2]
[360205702,1746622241716,-150.0,0.00019804,2]
[360205703,1746622241725,-4165.27670329,0.00019808,2]
[360205704,1746622241734,-150.0,0.00019814,2]
[360205705,1746622241743,-150.0,0.00019814,2]
[360205706,1746622241752,-150.0,0.00019815,2]
[360205707,1746622241762,-150.0,0.00019815,2]
[360205708,1746622241771,-1370.9788088,0.00019815,2]
[360205709,1746622241780,-150.0,0.00019819,2]
[360205710,1746622241790,-150.0,0.00019822,2]
[360205711,1746622241799,-150.0,0.00019825,2]
[360205712,1746622241809,-150.0,0.00019826,2]
[360205713,1746622241818,-150.0,0.00019827,2]
[360205714,1746622241827,-150.0,0.00019828,2]
[360205715,1746622241837,-150.0,0.00019828,2]
[360205716,1746622241846,-150.0,0.00019837,2]
[360205717,1746622241857,-150.0,0.00019839,2]
[360205718,1746622241867,-13.3305844,0.00019843,2]
[360205719,1746622241876,-150.0,0.00019843,2]
[360205720,1746622241886,-150.0,0.00019844,2]
[360205721,1746622241895,-737.22417964,0.00019844,2]
[360205722,1746622241905,-6468.77683115,0.00019845,2]
[360205723,1746622241914,-500.0,0.00019846,2]
[360205724,1746622241923,-450.0,0.00019846,2]
[360205725,1746622241932,-181.02728098,0.00019846,2]
[360205726,1746622241942,-450.0,0.00019846,2]
[360205727,1746622241951,-450.0,0.00019846,2]
[360205728,1746622241960,-450.0,0.00019846,2]
[360205729,1746622241970,-447.69776053,0.00019846,2]
[360205730,1746622241979,-450.0,0.00019846,2]
[360205731,1746622241988,-560.55,0.00019846,2]
[360205732,1746622241997,-450.0,0.00019846,2]
[360205733,1746622242006,-450.0,0.00019846,2]
[360205734,1746622242016,-512.25529573,0.00019846,2]
[360205735,1746622242026,-150.0,0.00019846,2]
[360205736,1746622242036,-450.0,0.00019846,2]
[360205737,1746622242046,-494.41,0.00019846,2]
[360205738,1746622242055,-450.0,0.00019846,2]
[360205739,1746622242064,-450.0,0.00019846,2]
[360205740,1746622242073,-542.79265641,0.00019846,2]
[360205741,1746622242083,-450.0,0.00019846,2]
[360205742,1746622242092,-450.0,0.00019846,2]
[360205743,1746622242101,-450.0,0.00019846,2]
[360205744,1746622242111,-500.5078654,0.00019846,2]
[360205745,1746622242125,-450.0,0.00019846,2]
[360205746,1746622242134,-551.0,0.00019846,2]
[360205747,1746622242143,-450.0,0.00019846,2]
[360205748,1746622242152,-318.75807153,0.00019846,2]
[360205749,1746622242162,-450.0,0.00019846,2]
[360205750,1746622242171,-450.0,0.00019846,2]
[360205751,1746622242181,-450.0,0.00019846,2]
[360205752,1746622242191,-450.0,0.00019846,2]
[360205753,1746622242201,-450.0,0.00019846,2]
[360205754,1746622242211,-450.0,0.00019846,2]
[360205755,1746622242220,-450.0,0.00019846,2]
[360205756,1746622242229,-450.0,0.00019846,2]
[360205757,1746622242239,-450.0,0.00019846,2]
[360205758,1746622242248,-450.0,0.00019846,2]
[360205759,1746622242258,-450.0,0.00019846,2]
[360205760,1746622242267,-150.0,0.00019848,2]
[360205761,1746622242276,-150.0,0.0001985,2]
[360205762,1746622242287,-150.0,0.00019851,2]
[360205763,1746622242296,-150.0,0.00019851,2]
[360205764,1746622242305,-150.0,0.00019853,2]
[360205765,1746622242314,-504.46137812,0.00019853,2]
[360205766,1746622242323,-500.0,0.00019853,2]
[360205767,1746622242333,-504.46137812,0.00019853,2]
[360205768,1746622242342,-500.0,0.00019853,2]
[360205769,1746622242351,-504.46137812,0.00019853,2]
[360205770,1746622242360,-500.0,0.00019853,2]
[360205771,1746622242369,-504.46137812,0.00019853,2]
[360205772,1746622242379,-500.0,0.00019853,2]
[360205773,1746622242388,-504.46137812,0.00019853,2]
[360205774,1746622242398,-497.36905541,0.00019853,2]
[360205775,1746622242407,-500.0,0.00019853,2]
[360205776,1746622242417,-504.46137812,0.00019853,2]
[360205777,1746622242426,-504.46137812,0.00019853,2]
[360205778,1746622242436,-500.0,0.00019853,2]
[360205779,1746622242445,-504.46137812,0.00019853,2]
[360205780,1746622242454,-500.0,0.00019853,2]
[360205781,1746622242463,-504.46137812,0.00019853,2]
[360205782,1746622242472,-504.46137812,0.00019853,2]
[360205783,1746622242481,-500.0,0.00019853,2]
[360205784,1746622242491,-504.46137812,0.00019853,2]
[360205785,1746622242500,-504.46137812,0.00019853,2]
[360205786,1746622242509,-500.0,0.00019853,2]
[360205787,1746622242518,-504.46137812,0.00019853,2]
[360205788,1746622242527,-504.46137812,0.00019853,2]
[360205789,1746622242536,-500.0,0.00019853,2]
[360205790,1746622242545,-504.46137812,0.00019853,2]
[360205791,1746622242554,-504.46137812,0.00019853,2]
[360205792,1746622242563,-500.0,0.00019853,2]
[360205793,1746622242572,-504.46137812,0.00019853,2]
[360205794,1746622242582,-500.0,0.00019853,2]
[360205795,1746622242591,-504.46137812,0.00019853,2]
[360205796,1746622242600,-504.46137812,0.00019853,2]
[360205797,1746622242609,-500.0,0.00019853,2]
[360205798,1746622242620,-504.46137812,0.00019853,2]
[360205799,1746622242630,-504.46137812,0.00019853,2]
[360205800,1746622242640,-500.0,0.00019853,2]
[360205801,1746622242649,-504.46137812,0.00019853,2]
[360205802,1746622242658,-500.0,0.00019853,2]
[360205803,1746622242667,-504.46137812,0.00019853,2]
[360205804,1746622242676,-504.46137812,0.00019853,2]
[360205805,1746622242686,-500.0,0.00019853,2]
[360205806,1746622242695,-504.46137812,0.00019853,2]
[360205807,1746622242704,-504.46137812,0.00019853,2]
[360205808,1746622242714,-500.0,0.00019853,2]
[360205809,1746622242723,-504.46137812,0.00019853,2]
[360205810,1746622242732,-504.46137812,0.00019853,2]
[360205811,1746622242741,-504.46137812,0.00019853,2]
[360205812,1746622242750,-504.46137812,0.00019853,2]
[360205813,1746622242759,-504.46137812,0.00019853,2]
[360205814,1746622242768,-504.46137812,0.00019853,2]
[360205815,1746622242777,-504.46137812,0.00019853,2]
[360205816,1746622242786,-504.46137812,0.00019853,2]
[360205817,1746622242795,-504.46137812,0.00019853,2]
[360205818,1746622242805,-504.46137812,0.00019853,2]
[360205819,1746622242814,-504.46137812,0.00019853,2]
[360205820,1746622242824,-504.46137812,0.00019853,2]
[360205821,1746622242833,-504.46137812,0.00019853,2]
[360205822,1746622242842,-504.46137812,0.00019853,2]
[360205823,1746622242852,-504.46137812,0.00019853,2]
[360205824,1746622242861,-504.46137812,0.00019853,2]
[360205827,1746622242870,-504.46137812,0.00019853,2]
[360205830,1746622242879,-504.46137812,0.00019853,2]
[360205832,1746622242888,-504.46137812,0.00019853,2]
[360205835,1746622242897,-504.46137812,0.00019853,2]
[360205838,1746622242907,-504.46137812,0.00019853,2]
[360205839,1746622242916,-504.46137812,0.00019853,2]
[360205840,1746622242926,-504.46137812,0.00019853,2]
[360205841,1746622242935,-504.46137812,0.00019853,2]
[360205842,1746622242946,-504.46137812,0.00019853,2]
[360205843,1746622242955,-504.46137812,0.00019853,2]
[360205844,1746622242964,-501.80631823,0.00019853,2]
[360205846,1746622242974,-501.80631823,0.00019853,2]
[360205847,1746622242983,-501.80631823,0.00019853,2]
[360205849,1746622242992,-501.80631823,0.00019853,2]
[360205850,1746622243001,-501.80631823,0.00019853,2]
[360205852,1746622243011,-501.80631823,0.00019853,2]
[360205854,1746622243020,-501.80631823,0.00019853,2]
[360205856,1746622243029,-501.80631823,0.00019853,2]
[360205858,1746622243038,-501.80631823,0.00019853,2]
[360205859,1746622243048,-501.80631823,0.00019853,2]
[360205860,1746622243057,-501.80631823,0.00019853,2]
[360205861,1746622243066,-501.80631823,0.00019853,2]
[360205862,1746622243075,-501.80631823,0.00019853,2]
[360205863,1746622243084,-501.80631823,0.00019853,2]
[360205864,1746622243094,-501.80631823,0.00019853,2]
[360205866,1746622243103,-501.80631823,0.00019853,2]
[360205867,1746622243112,-501.80631823,0.00019853,2]
[360205868,1746622243121,-501.80631823,0.00019853,2]
[360205869,1746622243133,-501.80631823,0.00019853,2]
[360205870,1746622243142,-501.80631823,0.00019853,2]
[360205871,1746622243151,-501.80631823,0.00019853,2]
[360205872,1746622243161,-501.80631823,0.00019853,2]
[360205873,1746622243170,-501.80631823,0.00019853,2]
[360205874,1746622243179,-501.80631823,0.00019853,2]
[360205875,1746622243188,-501.80631823,0.00019853,2]
[360205876,1746622243197,-501.80631823,0.00019853,2]
[360205877,1746622243206,-642.81825299,0.00019853,2]
[360205878,1746622243215,-642.81825299,0.00019853,2]
[360205879,1746622243224,-642.81825299,0.00019853,2]
[360205880,1746622243234,-642.81825299,0.00019853,2]
[360205881,1746622243243,-642.81825299,0.00019853,2]
[360205882,1746622243252,-642.81825299,0.00019853,2]
[360205883,1746622243262,-642.81825299,0.00019853,2]
[360205884,1746622243271,-642.81825299,0.00019853,2]
[360205885,1746622243281,-642.81825299,0.00019853,2]
[360205886,1746622243290,-642.81825299,0.00019853,2]
[360205887,1746622243300,-642.81825299,0.00019853,2]
[360205888,1746622243309,-642.81825299,0.00019853,2]
[360205889,1746622243319,-150.0,0.00019854,2]
[360205890,1746622243329,-6468.77683128,0.00019855,2]
[360205891,1746622243339,-11666.666666,0.00019857,2]
[360205892,1746622243348,-150.0,0.0001986,2]
[360205893,1746622243358,-150.0,0.0001986,2]
[360205894,1746622243367,-150.0,0.0001986,2]
[360205895,1746622243377,-150.0,0.00019863,2]
[360205896,1746622243386,-150.0,0.00019865,2]
[360205897,1746622243395,-150.0,0.00019867,2]
[360205898,1746622243405,-150.0,0.0001987,2]
[360205899,1746622243414,-150.0,0.00019872,2]
[360205900,1746622243424,-500.0,0.00019873,2]
[360205901,1746622243433,-500.0,0.00019873,2]
[360205902,1746622243442,-390.01411453,0.00019873,2]
[360205903,1746622243451,-500.0,0.00019873,2]
[360205904,1746622243460,-313.18941228,0.00019873,2]
[360205905,1746622243470,-503.82522634,0.00019873,2]
[360205906,1746622243479,-500.0,0.00019873,2]
[360205907,1746622243488,-500.0,0.00019873,2]
[360205908,1746622243497,-500.0,0.00019873,2]
[360205909,1746622243506,-500.0,0.00019873,2]
[360205910,1746622243515,-500.0,0.00019873,2]
[360205911,1746622243524,-500.0,0.00019873,2]
[360205912,1746622243533,-500.0,0.00019873,2]
[360205913,1746622243542,-548.47,0.00019874,2]
[360205914,1746622243551,-450.0,0.00019877,2]
[360205915,1746622243560,-450.0,0.00019877,2]
[360205916,1746622243570,-450.0,0.00019877,2]
[360205917,1746622243579,-733.81,0.00019877,2]
[360205918,1746622243588,-4335.01,0.00019877,2]
[360205919,1746622243597,-450.0,0.00019877,2]
[360205920,1746622243606,-450.0,0.00019877,2]
[360205921,1746622243616,-450.0,0.00019877,2]
[360205922,1746622243625,-450.0,0.00019877,2]
[360205923,1746622243634,-450.0,0.00019877,2]
[360205924,1746622243643,-450.0,0.00019877,2]
[360205925,1746622243652,-450.0,0.00019877,2]
[360205926,1746622243661,-6468.77683128,0.00019878,2]
[360205927,1746622243670,-23314.67576156,0.00019878,2]
[360205928,1746622243679,-150.0,0.0001988,2]
[360205929,1746622243688,-158.3552366,0.00019884,2]
[360205930,1746622243698,-324.02720185,0.00019884,2]
[360205931,1746622243707,-450.0,0.00019884,2]
[360205932,1746622243716,-450.0,0.00019884,2]
[360205933,1746622243725,-450.0,0.00019884,2]
[360205934,1746622243734,-450.0,0.00019884,2]
[360205935,1746622243743,-450.0,0.00019884,2]
[360205936,1746622243753,-504.17099509,0.00019884,2]
[360205937,1746622243762,-450.0,0.00019884,2]
[360205938,1746622243771,-450.0,0.00019884,2]
[360205939,1746622243781,-450.0,0.00019884,2]
[360205940,1746622243789,-239.93653699,0.00019884,2]
[360205941,1746622243799,-450.0,0.00019884,2]
[360205942,1746622243808,-450.0,0.00019884,2]
[360205943,1746622243817,-459.12520328,0.00019884,2]
[360205944,1746622243826,-284.71620812,0.00019884,2]
[360205945,1746622243835,-450.0,0.00019884,2]
[360205946,1746622243845,-450.0,0.00019884,2]
[360205947,1746622243855,-250.0,0.00019884,2]
[360205948,1746622243863,-450.0,0.00019884,2]
[360205949,1746622243872,-300.03777631,0.00019884,2]
[360205950,1746622243881,-508.71688231,0.00019884,2]
[360205951,1746622243890,-302.33454436,0.00019884,2]
[360205952,1746622243899,-188.7153091,0.00019884,2]
[360205953,1746622243908,-450.0,0.00019884,2]
[360205954,1746622243917,-450.0,0.00019884,2]
[360205955,1746622243926,-510.15604118,0.00019884,2]
[360205956,1746622243935,-450.0,0.00019884,2]
[360205957,1746622243944,-268.89952075,0.00019884,2]
[360205958,1746622243953,-450.0,0.00019884,2]
[360205959,1746622243963,-450.0,0.00019884,2]
[360205960,1746622243972,-450.0,0.00019884,2]
[360205961,1746622243981,-450.0,0.00019884,2]
[360205962,1746622243990,-522.10512428,0.00019884,2]
[360205963,1746622243999,-450.0,0.00019884,2]
[360205964,1746622244009,-450.0,0.00019884,2]
[360205965,1746622244018,-450.0,0.00019884,2]
[360205966,1746622244027,-450.0,0.00019884,2]
[360205967,1746622244036,-450.0,0.00019884,2]
[360205968,1746622244045,-450.0,0.00019884,2]
[360205969,1746622244055,-150.0,0.00019884,2]
[360205970,1746622244064,-500.0,0.00019884,2]
[360205971,1746622244073,-450.0,0.00019884,2]
[360205972,1746622244082,-567.84884716,0.00019884,2]
[360205973,1746622244091,-450.0,0.00019884,2]
[360205974,1746622244100,-450.0,0.00019884,2]
[360205975,1746622244110,-450.0,0.00019884,2]
[360205976,1746622244119,-450.0,0.00019884,2]
[360205977,1746622244129,-450.0,0.00019884,2]
[360205978,1746622244139,-450.0,0.00019884,2]
[360205979,1746622244148,-450.0,0.00019884,2]
[360205980,1746622244157,-450.0,0.00019884,2]
[360205981,1746622244166,-490.87875543,0.00019884,2]
[360205982,1746622244176,-450.0,0.00019884,2]
[360205983,1746622244185,-450.0,0.00019884,2]
[360205984,1746622244194,-450.0,0.00019884,2]
[360205985,1746622244204,-450.0,0.00019884,2]
[360205986,1746622244215,-298.20338739,0.00019884,2]
[360205987,1746622244225,-450.0,0.00019884,2]
[360205988,1746622244235,-450.0,0.00019884,2]
[360205989,1746622244244,-450.0,0.00019884,2]
[360205990,1746622244253,-450.0,0.00019884,2]
[360205991,1746622244263,-580.08162702,0.00019884,2]
[360205992,1746622244272,-450.0,0.00019884,2]
[360205993,1746622244281,-450.0,0.00019884,2]
[360205994,1746622244290,-450.0,0.00019884,2]
[360205995,1746622244299,-450.0,0.00019884,2]
[360205996,1746622244308,-450.0,0.00019884,2]
[360205997,1746622244317,-450.0,0.00019884,2]
[360205998,1746622244327,-450.0,0.00019884,2]
[360205999,1746622244336,-486.17591022,0.00019884,2]
[360206000,1746622244346,-450.0,0.00019884,2]
[360206001,1746622244355,-450.0,0.00019884,2]
[360206002,1746622244364,-450.0,0.00019884,2]
[360206003,1746622244373,-450.0,0.00019884,2]
[360206004,1746622244382,-297.06007208,0.00019884,2]
[360206005,1746622244392,-450.0,0.00019884,2]
[360206006,1746622244402,-500.0,0.00019884,2]
[360206007,1746622244412,-22835.6483,0.00019885,2]
[360206008,1746622244421,-150.0,0.00019886,2]
[360206009,1746622244430,-150.0,0.00019886,2]
[360206010,1746622244440,-150.0,0.00019886,2]
[360206011,1746622244449,-150.0,0.00019887,2]
[360206012,1746622244459,-150.0,0.00019893,2]
[360206013,1746622244468,-265.95627424,0.00019895,2]
[360206014,1746622244477,-6468.77683115,0.00019896,2]
[360206015,1746622244486,-450.0,0.00019896,2]
[360206016,1746622244495,-450.0,0.00019896,2]
[360206017,1746622244504,-450.0,0.00019896,2]
[360206018,1746622244514,-450.0,0.00019896,2]
[360206019,1746622244523,-450.0,0.00019896,2]
[360206020,1746622244532,-450.0,0.00019896,2]
[360206021,1746622244541,-450.0,0.00019896,2]
[360206022,1746622244551,-450.0,0.00019896,2]
[360206023,1746622244560,-450.0,0.00019896,2]
[360206024,1746622244570,-570.70309032,0.00019896,2]
[360206025,1746622244579,-450.0,0.00019896,2]
[360206026,1746622244588,-450.0,0.00019896,2]
[360206027,1746622244597,-450.0,0.00019896,2]
[360206028,1746622244606,-450.0,0.00019896,2]
[360206029,1746622244615,-450.0,0.00019896,2]
[360206030,1746622244624,-450.0,0.00019896,2]
[360206031,1746622244633,-450.0,0.00019896,2]
[360206032,1746622244642,-450.0,0.00019896,2]
[360206033,1746622244651,-510.0,0.00019896,2]
[360206034,1746622244660,-450.0,0.00019896,2]
[360206035,1746622244669,-465.58248752,0.00019896,2]
[360206036,1746622244679,-450.0,0.00019896,2]
[360206037,1746622244687,-450.0,0.00019896,2]
[360206038,1746622244696,-450.0,0.00019896,2]
[360206039,1746622244705,-450.0,0.00019896,2]
[360206040,1746622244714,-450.0,0.00019896,2]
[360206041,1746622244723,-450.0,0.00019896,2]
[360206042,1746622244732,-450.0,0.00019896,2]
[360206043,1746622244741,-450.0,0.00019896,2]
[360206044,1746622244750,-450.0,0.00019896,2]
[360206045,1746622244759,-569.09377469,0.00019896,2]
[360206046,1746622244768,-310.0,0.00019896,2]
[360206047,1746622244777,-450.0,0.00019896,2]
[360206048,1746622244786,-450.0,0.00019896,2]
[360206049,1746622244795,-450.0,0.00019896,2]
[360206050,1746622244804,-450.0,0.00019896,2]
[360206051,1746622244814,-450.0,0.00019896,2]
[360206052,1746622244823,-450.0,0.00019896,2]
[360206053,1746622244832,-450.0,0.00019896,2]
[360206054,1746622244842,-450.0,0.00019896,2]
[360206055,1746622244852,-261.63,0.00019896,2]
[360206056,1746622244861,-450.0,0.00019896,2]
[360206057,1746622244870,-450.0,0.00019896,2]
[360206058,1746622244878,-450.0,0.00019896,2]
[360206059,1746622244887,-450.0,0.00019896,2]
[360206060,1746622244897,-450.0,0.00019896,2]
[360206061,1746622244906,-450.0,0.00019896,2]
[360206062,1746622244915,-450.0,0.00019896,2]
[360206063,1746622244924,-450.0,0.00019896,2]
[360206064,1746622244933,-450.0,0.00019896,2]
[360206065,1746622244943,-239.22,0.00019896,2]
[360206066,1746622244952,-450.0,0.00019896,2]
[360206067,1746622244961,-450.0,0.00019896,2]
[360206068,1746622244971,-450.0,0.00019896,2]
[360206069,1746622244980,-450.0,0.00019896,2]
[360206070,1746622244989,-320.01303806,0.00019896,2]
[360206071,1746622244998,-450.0,0.00019896,2]
[360206072,1746622245008,-450.0,0.00019896,2]
[360206073,1746622245017,-450.0,0.00019896,2]
[360206074,1746622245026,-450.0,0.00019896,2]
[360206075,1746622245036,-450.0,0.00019896,2]
[360206076,1746622245206,-450.0,0.00019896,2]
[360206077,1746622245216,-450.0,0.00019896,2]
[360206078,1746622245225,-450.0,0.00019896,2]
[360206079,1746622245234,-475.622608,0.00019896,2]
[360206080,1746622245243,-450.0,0.00019896,2]
[360206081,1746622245253,-450.0,0.00019896,2]
[360206082,1746622245263,-450.0,0.00019896,2]
[360206083,1746622245272,-450.0,0.00019896,2]
[360206084,1746622245281,-450.0,0.00019896,2]
[360206085,1746622245290,-450.0,0.00019896,2]
[360206086,1746622245300,-450.0,0.00019896,2]
[360206087,1746622245309,-450.0,0.00019896,2]
[360206088,1746622245318,-450.0,0.00019896,2]
[360206089,1746622245328,-34179.84,0.00019896,2]
[360206090,1746622245337,-450.0,0.00019896,2]
[360206091,1746622245347,-450.0,0.00019896,2]
[360206092,1746622245356,-450.0,0.00019896,2]
[360206093,1746622245366,-450.0,0.00019896,2]
[360206094,1746622245375,-450.0,0.00019896,2]
[360206095,1746622245385,-500.0,0.00019896,2]
[360206096,1746622245394,-450.0,0.00019896,2]
[360206097,1746622245404,-450.0,0.00019896,2]
[360206098,1746622245413,-450.0,0.00019896,2]
[360206099,1746622245423,-450.0,0.00019896,2]
[360206100,1746622245432,-450.0,0.00019896,2]
[360206101,1746622245442,-505.49,0.00019896,2]
[360206102,1746622245451,-450.0,0.00019896,2]
[360206103,1746622245461,-450.0,0.00019896,2]
[360206104,1746622245470,-512.50921445,0.00019896,2]
[360206105,1746622245479,-450.0,0.00019896,2]
[360206106,1746622245488,-642.12,0.00019896,2]
[360206107,1746622245498,-450.0,0.00019896,2]
[360206108,1746622245507,-450.0,0.00019896,2]
[360206109,1746622245519,-450.0,0.00019896,2]
[360206110,1746622245528,-515.78,0.00019896,2]